fUST/lending_fUST_20250417
["ID","MTS","AMOUNT","RATE_DAILY","PERIOD"]
[358282408,1744895435898,-816.66,0.00021917,2]
[358282409,1744895435907,-500.0,0.00021917,2]
[358282410,1744895435917,-530.40608626,0.00021917,2]
[358282411,1744895435926,-1131.32,0.00021917,2]
[358282412,1744895435937,-629.83,0.00021917,2]
[358282413,1744895435948,-813.87,0.00021917,2]
[358282414,1744895435959,-725.69,0.00021917,2]
[358282415,1744895435969,-500.0,0.00021917,2]
[358282416,1744895435978,-692.65,0.00021917,2]
[358282417,1744895435988,-252.53732369,0.00021917,2]
[358282418,1744895435997,-500.0,0.00021917,2]
[358282419,1744895436007,-500.0,0.00021917,2]
[358282420,1744895436016,-1008.74,0.00021917,2]
[358282421,1744895436026,-500.0,0.00021917,2]
[358282422,1744895436035,-500.0,0.00021917,2]
[358282423,1744895436045,-500.0,0.00021917,2]
[358282424,1744895436056,-500.0,0.00021917,2]
[358282425,1744895436065,-943.25,0.00021917,2]
[358282426,1744895436075,-500.0,0.00021917,2]
[358282427,1744895436084,-500.0,0.00021917,2]
[358282428,1744895436094,-500.0,0.00021917,2]
[358282429,1744895436104,-670.85,0.00021917,2]
[358282430,1744895436114,-500.0,0.00021917,2]
[358282431,1744895436124,-500.0,0.00021917,2]
[358282432,1744895436134,-991.81,0.00021917,2]
[358282433,1744895436144,-1020.39,0.00021917,2]
[358282434,1744895436153,-547.95,0.00021917,2]
[358282435,1744895436163,-500.0,0.00021917,2]
[358282436,1744895436173,-500.0,0.00021917,2]
[358282437,1744895436184,-500.0,0.00021917,2]
[358282438,1744895436194,-500.0,0.00021917,2]
[358282439,1744895436203,-637.91,0.00021917,2]
[358282440,1744895436213,-1606.61,0.00021917,2]
[358282441,1744895436222,-500.0,0.00021917,2]
[358282442,1744895436232,-500.0,0.00021917,2]
[358282443,1744895436242,-707.69,0.00021917,2]
[358282444,1744895436252,-988.68,0.00021917,2]
[358282445,1744895436262,-500.0,0.00021917,2]
[358282446,1744895436271,-1064.62,0.00021917,2]
[358282447,1744895436281,-683.14,0.00021917,2]
[358282448,1744895436290,-500.0,0.00021917,2]
[358282449,1744895436301,-500.0,0.00021917,2]
[358282450,1744895436310,-500.0,0.00021917,2]
[358282451,1744895436319,-1062.22,0.00021917,2]
[358282452,1744895436329,-500.0,0.00021917,2]
[358282453,1744895436339,-500.0,0.00021917,2]
[358282454,1744895436349,-1126.95,0.00021917,2]
[358282455,1744895436358,-500.0,0.00021917,2]
[358282456,1744895436367,-500.0,0.00021917,2]
[358282457,1744895436377,-555.40390908,0.00021917,2]
[358282458,1744895436386,-624.25,0.00021917,2]
[358282459,1744895436396,-1153.69,0.00021917,2]
[358282460,1744895436408,-500.0,0.00021917,2]
[358282461,1744895436419,-151.0,0.00021917,2]
[358282462,1744895436429,-500.0,0.00021917,2]
[358282463,1744895436439,-529.44612255,0.00021917,2]
[358282464,1744895436448,-202.41612755,0.00021917,2]
[358282465,1744895436458,-151.86947662,0.00021917,2]
[358282466,1744895436468,-607.78,0.00021917,2]
[358282467,1744895436477,-500.0,0.00021917,2]
[358282468,1744895436487,-151.0,0.00021917,2]
[358282469,1744895436496,-1153.53,0.00021917,2]
[358282470,1744895436506,-500.0,0.00021917,2]
[358282471,1744895436516,-500.0,0.00021917,2]
[358282472,1744895436525,-198.79943135,0.00021917,2]
[358282473,1744895436535,-500.0,0.00021917,2]
[358282474,1744895436544,-7476.09,0.00021917,2]
[358282475,1744895436556,-500.0,0.00021917,2]
[358282476,1744895436566,-500.0,0.00021917,2]
[358282477,1744895436576,-500.0,0.00021917,2]
[358282478,1744895436588,-1009.94,0.00021917,2]
[358282479,1744895436599,-500.0,0.00021917,2]
[358282480,1744895436609,-500.0,0.00021917,2]
[358282481,1744895436619,-1307.72,0.00021917,2]
[358282482,1744895436629,-500.0,0.00021917,2]
[358282483,1744895436639,-500.0,0.00021917,2]
[358282484,1744895436648,-500.0,0.00021917,2]
[358282485,1744895436658,-732.71,0.00021917,2]
[358282486,1744895436668,-786.13,0.00021917,2]
[358282487,1744895436678,-500.0,0.00021917,2]
[358282488,1744895436688,-6138.63,0.00021917,2]
[358282489,1744895436698,-717.52,0.00021917,2]
[358282490,1744895436708,-500.0,0.00021917,2]
[358282491,1744895436718,-500.0,0.00021917,2]
[358282492,1744895436728,-500.0,0.00021917,2]
[358282493,1744895436738,-500.0,0.00021917,2]
[358282494,1744895436748,-742.08,0.00021917,2]
[358282495,1744895436758,-500.0,0.00021917,2]
[358282496,1744895436768,-607.94,0.00021917,2]
[358282497,1744895436778,-500.0,0.00021917,2]
[358282498,1744895436788,-500.0,0.00021917,2]
[358282499,1744895436797,-207.15256034,0.00021917,2]
[358282500,1744895436808,-500.0,0.00021917,2]
[358282501,1744895436819,-749.55,0.00021917,2]
[358282502,1744895436829,-500.0,0.00021917,2]
[358282503,1744895436840,-500.0,0.00021917,2]
[358282504,1744895436850,-1355.22,0.00021917,2]
[358282505,1744895436859,-500.0,0.00021917,2]
[358282506,1744895436869,-151.0,0.00021917,2]
[358282507,1744895436879,-151.0,0.00021917,2]
[358282508,1744895436888,-154.02454807,0.00021917,2]
[358282509,1744895436898,-786.15,0.00021917,2]
[358282510,1744895436908,-500.0,0.00021917,2]
[358282511,1744895436918,-500.0,0.00021917,2]
[358282512,1744895436928,-500.0,0.00021917,2]
[358282513,1744895436937,-858.63,0.00021917,2]
[358282514,1744895436951,-515.19,0.00021917,2]
[358282515,1744895436961,-647.83,0.00021917,2]
[358282516,1744895436971,-1069.59,0.00021917,2]
[358282517,1744895436981,-500.0,0.00021917,2]
[358282518,1744895436993,-500.0,0.00021917,2]
[358282519,1744895437003,-787.93,0.00021917,2]
[358282520,1744895437012,-500.0,0.00021917,2]
[358282521,1744895437022,-500.0,0.00021917,2]
[358282522,1744895437032,-500.0,0.00021917,2]
[358282523,1744895437042,-500.0,0.00021917,2]
[358282524,1744895437052,-500.0,0.00021917,2]
[358282525,1744895437061,-500.0,0.00021917,2]
[358282526,1744895437072,-1402.57,0.00021917,2]
[358282527,1744895437081,-1229.55,0.00021917,2]
[358282528,1744895437091,-500.0,0.00021917,2]
[358282529,1744895437101,-500.0,0.00021917,2]
[358282530,1744895437112,-974.87,0.00021917,2]
[358282531,1744895437122,-569.39,0.00021917,2]
[358282532,1744895437132,-867.0,0.00021917,2]
[358282533,1744895437142,-555.6,0.00021917,2]
[358282534,1744895437152,-557.91,0.00021917,2]
[358282535,1744895437162,-874.26,0.00021917,2]
[358282536,1744895437172,-500.0,0.00021917,2]
[358282537,1744895437182,-500.0,0.00021917,2]
[358282538,1744895437191,-500.0,0.00021917,2]
[358282539,1744895437201,-578.86,0.00021917,2]
[358282540,1744895437212,-615.88,0.00021917,2]
[358282541,1744895437222,-500.0,0.00021917,2]
[358282542,1744895437232,-500.0,0.00021917,2]
[358282543,1744895437241,-500.0,0.00021917,2]
[358282544,1744895437252,-500.0,0.00021917,2]
[358282545,1744895437261,-1434.2,0.00021917,2]
[358282546,1744895437271,-500.0,0.00021917,2]
[358282547,1744895437282,-500.0,0.00021917,2]
[358282548,1744895437292,-500.0,0.00021917,2]
[358282549,1744895437302,-500.0,0.00021917,2]
[358282550,1744895437313,-500.0,0.00021917,2]
[358282551,1744895437322,-151.0,0.00021917,2]
[358282552,1744895437332,-1905.79,0.00021917,2]
[358282553,1744895437342,-500.0,0.00021917,2]
[358282554,1744895437352,-501.72675394,0.00021917,2]
[358282555,1744895437361,-500.0,0.00021917,2]
[358282556,1744895437371,-500.0,0.00021917,2]
[358282557,1744895437381,-605.15,0.00021917,2]
[358282558,1744895437391,-500.0,0.00021917,2]
[358282559,1744895437400,-1207.56,0.00021917,2]
[358282560,1744895437410,-557.67,0.00021917,2]
[358282561,1744895437420,-1449.89,0.00021917,2]
[358282562,1744895437430,-524.21,0.00021917,2]
[358282563,1744895437440,-500.0,0.00021917,2]
[358282564,1744895437451,-636.64,0.00021917,2]
[358282565,1744895437461,-500.0,0.00021917,2]
[358282566,1744895437471,-1692.89,0.00021917,2]
[358282567,1744895437480,-500.0,0.00021917,2]
[358282568,1744895437490,-500.0,0.00021917,2]
[358282569,1744895437500,-500.0,0.00021917,2]
[358282570,1744895437509,-500.0,0.00021917,2]
[358282571,1744895437519,-1959.64,0.00021917,2]
[358282572,1744895437530,-957.72,0.00021917,2]
[358282573,1744895437540,-13429.06,0.00021917,2]
[358282574,1744895437549,-500.0,0.00021917,2]
[358282575,1744895437560,-500.0,0.00021917,2]
[358282576,1744895437570,-500.0,0.00021917,2]
[358282577,1744895437580,-500.0,0.00021917,2]
[358282578,1744895437590,-2222.8,0.00021917,2]
[358282579,1744895437600,-3023.56,0.00021917,2]
[358282580,1744895437611,-500.0,0.00021917,2]
[358282581,1744895437621,-712.14,0.00021917,2]
[358282582,1744895437631,-740.44,0.00021917,2]
[358282583,1744895437641,-500.0,0.00021917,2]
[358282584,1744895437651,-2603.18,0.00021917,2]
[358282585,1744895437818,-500.0,0.00021917,2]
[358282586,1744895437829,-515.14,0.00021917,2]
[358282587,1744895437839,-595.26,0.00021917,2]
[358282588,1744895437850,-500.0,0.00021917,2]
[358282589,1744895437860,-500.0,0.00021917,2]
[358282591,1744895437870,-500.0,0.00021917,2]
[358282593,1744895437883,-1002.59,0.00021917,2]
[358282594,1744895437893,-847.63,0.00021917,2]
[358282596,1744895437903,-572.36,0.00021917,2]
[358282597,1744895437914,-500.0,0.00021917,2]
[358282598,1744895437924,-500.0,0.00021917,2]
[358282599,1744895437934,-626.18,0.00021917,2]
[358282601,1744895437944,-500.0,0.00021917,2]
[358282603,1744895437957,-500.0,0.00021917,2]
[358282604,1744895437967,-1189.13,0.00021917,2]
[358282605,1744895437977,-500.0,0.00021917,2]
[358282606,1744895437987,-500.0,0.00021917,2]
[358282607,1744895437997,-500.0,0.00021917,2]
[358282608,1744895438007,-6252.34387797,0.00021917,2]
[358282612,1744895438269,-2459.24612203,0.00021917,2]
[358282613,1744895438280,-500.0,0.00021917,2]
[358282614,1744895438290,-786.29,0.00021917,2]
[358282615,1744895438299,-847.6,0.00021917,2]
[358282616,1744895438310,-500.0,0.00021917,2]
[358282618,1744895438320,-742.58289777,0.00021917,2]
[358282628,1744895439118,-3755.07710223,0.00021917,2]
[358282629,1744895439128,-500.0,0.00021917,2]
[358282630,1744895439138,-500.0,0.00021917,2]
[358282631,1744895439148,-500.0,0.00021917,2]
[358282632,1744895439158,-500.0,0.00021917,2]
[358282633,1744895439168,-500.0,0.00021917,2]
[358282634,1744895439178,-500.0,0.00021917,2]
[358282635,1744895439187,-500.0,0.00021917,2]
[358282636,1744895439197,-911.86,0.00021917,2]
[358282637,1744895439207,-1678.34,0.00021917,2]
[358282638,1744895439217,-758.21,0.00021917,2]
[358282639,1744895439227,-500.0,0.00021917,2]
[358282640,1744895439237,-500.0,0.00021917,2]
[358282641,1744895439247,-500.0,0.00021917,2]
[358282642,1744895439257,-500.0,0.00021917,2]
[358282643,1744895439267,-659.02,0.00021917,2]
[358282644,1744895439277,-1424.02,0.00021917,2]
[358282645,1744895439287,-996.8,0.00021917,2]
[358282646,1744895439297,-500.0,0.00021917,2]
[358282647,1744895439307,-500.0,0.00021917,2]
[358282648,1744895439317,-500.0,0.00021917,2]
[358282649,1744895439327,-589.72,0.00021917,2]
[358282650,1744895439337,-1314.03,0.00021917,2]
[358282651,1744895439346,-500.0,0.00021917,2]
[358282652,1744895439356,-500.0,0.00021917,2]
[358282653,1744895439366,-500.0,0.00021917,2]
[358282654,1744895439375,-500.0,0.00021917,2]
[358282655,1744895439385,-672.96,0.00021917,2]
[358282656,1744895439395,-500.0,0.00021917,2]
[358282657,1744895439404,-500.0,0.00021917,2]
[358282658,1744895439414,-558.15253874,0.00021917,2]
[358282659,1744895439424,-500.0,0.00021917,2]
[358282660,1744895439434,-500.0,0.00021917,2]
[358282661,1744895439444,-500.0,0.00021917,2]
[358282662,1744895439454,-500.0,0.00021917,2]
[358282663,1744895439464,-25978.58800804,0.00021917,2]
[358282664,1744895439476,-1863.99763445,0.00021917,2]
[358282703,1744895440746,-2.46435751,0.00021917,2]
[358282705,1744895440756,-440.95725216,0.00021917,2]
[358282745,1744895443484,-59.04274784,0.00021917,2]
[358282746,1744895443494,-518.88,0.00021917,2]
[358282747,1744895443504,-500.0,0.00021917,2]
[358282748,1744895443514,-500.0,0.00021917,2]
[358282749,1744895443524,-2939.83,0.00021917,2]
[358282750,1744895443534,-1368.44,0.00021917,2]
[358282751,1744895443543,-500.0,0.00021917,2]
[358282752,1744895443553,-500.0,0.00021917,2]
[358282753,1744895443563,-500.0,0.00021917,2]
[358282754,1744895443644,-500.0,0.00021917,2]
[358282755,1744895443655,-500.0,0.00021917,2]
[358282756,1744895443665,-500.0,0.00021917,2]
[358282757,1744895443674,-500.0,0.00021917,2]
[358282758,1744895443684,-500.0,0.00021917,2]
[358282759,1744895443693,-241.31536001,0.00021917,2]
[358282760,1744895443703,-500.0,0.00021917,2]
[358282761,1744895443712,-500.0,0.00021917,2]
[358282762,1744895443722,-1503.36,0.00021917,2]
[358282763,1744895443731,-500.0,0.00021917,2]
[358282764,1744895443741,-500.0,0.00021917,2]
[358282765,1744895443750,-500.0,0.00021917,2]
[358282766,1744895443760,-523.74,0.00021917,2]
[358282767,1744895443770,-500.0,0.00021917,2]
[358282768,1744895443779,-500.0,0.00021917,2]
[358282769,1744895443788,-500.0,0.00021917,2]
[358282770,1744895443797,-500.0,0.00021917,2]
[358282771,1744895443806,-503.6,0.00021917,2]
[358282772,1744895443817,-500.0,0.00021917,2]
[358282773,1744895443826,-500.0,0.00021917,2]
[358282774,1744895443835,-800.68,0.00021917,2]
[358282775,1744895443845,-510.85,0.00021917,2]
[358282776,1744895443854,-504.69815094,0.00021917,2]
[358282777,1744895443863,-666.46,0.00021917,2]
[358282778,1744895443873,-500.0,0.00021917,2]
[358282779,1744895443882,-8040.62451761,0.00021917,2]
[358284044,1744895477476,-242.68258862,0.000188,2]
[358284183,1744895718189,-300.29625579,0.00018612,2]
[358284184,1744895718216,-10.53101836,0.000187,2]
[358284484,1744896135208,-294.52003617,0.000186,2]
[358284485,1744896153394,-250.0,0.00018599,2]
[358284486,1744896153419,-37.03550045,0.00018599,2]
[358284488,1744896183362,-180.4983712,0.00018598,2]
[358284490,1744896205016,-119.5016288,0.00018598,2]
[358284491,1744896205039,-69.12420889,0.00018599,2]
[358284492,1744896239624,-60.88315758,0.00018599,2]
[358284493,1744896239647,-96.42881657,0.00018599,2]
[358284494,1744896303936,-300.0,0.00018598,2]
[358284508,1744896365274,-337.09917045,0.00018599,2]
[358284944,1744896423751,-164.62627224,0.00018598,2]
[358285314,1744896472438,9370.28131188,0.00018,2]
[358285315,1744896481775,-135.37372776,0.00018598,2]
[358285316,1744896481799,-23.89378505,0.00018598,2]
[358285317,1744896487381,-189.31761466,0.00018598,2]
[358285319,1744896521328,426.12508054,0.000175,4]
[358285321,1744896522619,-300.0,0.00018313,2]
[358285324,1744896543193,-200.0,0.00018313,2]
[358285325,1744896543217,-42.18531469,0.00018498,2]
[358285329,1744896574526,-147.13229997,0.00018498,2]
[358285330,1744896574550,-300.0,0.00018598,2]
[358285331,1744896574572,-66.47201298,0.00018599,2]
[358285332,1744896574615,-500.0,0.00018599,2]
[358285333,1744896574641,-500.0,0.00018599,2]
[358285334,1744896574947,-218.27615006,0.00018599,2]
[358285335,1744896574980,-500.0,0.00018599,2]
[358285336,1744896575009,-500.0,0.00018599,2]
[358285337,1744896575040,-500.0,0.00018599,2]
[358285338,1744896575064,-500.0,0.00018599,2]
[358285339,1744896575092,-500.0,0.00018599,2]
[358285340,1744896575119,-500.0,0.00018599,2]
[358285341,1744896575146,-462.09773406,0.00018599,2]
[358285342,1744896575175,-500.0,0.00018599,2]
[358285343,1744896575208,-384.67752601,0.00018599,2]
[358285344,1744896575235,-500.0,0.00018599,2]
[358285345,1744896575258,-39421.34427692,0.000186,2]
[358285346,1744896579017,-285.42281811,0.000186,2]
[358285347,1744896598187,-285.42281811,0.00018414,2]
[358285430,1744896643726,-469.31640685,0.000186,2]
[358285431,1744896643737,-502.69253149,0.000187,2]
[358285432,1744896643747,-620.76922289,0.000188,2]
[358285433,1744896643757,-662.37171848,0.000189,2]
[358285434,1744896643767,-209.7753395,0.00019681,2]
[358285435,1744896643778,-358.9295547,0.0001976,2]
[358285436,1744896643788,-300.0,0.00020156,2]
[358285439,1744896643798,-300.0,0.00020156,2]
[358285441,1744896643809,-25204.7689779,0.00020157,2]
[358285443,1744896643818,-200.000001,0.000205,2]
[358285444,1744896643828,-250.0,0.00020735,2]
[358285445,1744896643838,-289.8158653,0.0002099,2]
[358285446,1744896643849,-325.7661773,0.00021588,2]
[358285447,1744896643859,-1751.51703839,0.00021717,2]
[358285448,1744896643869,-368.6103768,0.00021781,2]
[358285449,1744896643880,-6291.32176184,0.00021817,2]
[358285450,1744896643890,-2192.0,0.00021853,2]
[358285451,1744896643900,-402.0,0.00021853,2]
[358285452,1744896643910,-269.603,0.00021853,2]
[358285453,1744896643920,-4146.98479717,0.00021858,2]
[358285454,1744896643930,-158.47423958,0.00021863,2]
[358285455,1744896643940,-151.0,0.00021904,2]
[358285456,1744896643951,-207.4,0.00021904,2]
[358285457,1744896643961,-169.67,0.00021906,2]
[358285458,1744896643971,-425.24341483,0.00021915,2]
[358285459,1744896643982,-67041.62221399,0.00021916,2]
[358285460,1744896643992,-27337.40343015,0.00021917,2]
[358285461,1744896644003,-8434.6371617,0.00021917,3]
[358285462,1744896644013,-500.0,0.00021917,2]
[358285463,1744896644023,-500.0,0.00021917,2]
[358285464,1744896644033,-500.0,0.00021917,2]
[358285465,1744896644043,-500.0,0.00021917,2]
[358285466,1744896644053,-500.0,0.00021917,2]
[358285467,1744896644063,-546.71742985,0.00021917,2]
[358285468,1744896644073,-500.0,0.00021917,2]
[358285469,1744896644084,-502.73462613,0.00021917,2]
[358285470,1744896644094,-500.0,0.00021917,2]
[358285471,1744896644107,-500.0,0.00021917,2]
[358285472,1744896644117,-500.0,0.00021917,2]
[358285473,1744896644127,-500.0,0.00021917,2]
[358285474,1744896644138,-500.0,0.00021917,2]
[358285475,1744896644149,-500.0,0.00021917,2]
[358285476,1744896644160,-500.0,0.00021917,2]
[358285477,1744896644171,-500.0,0.00021917,2]
[358285478,1744896644181,-500.55721184,0.00021917,2]
[358285479,1744896644192,-500.43307843,0.00021917,2]
[358285480,1744896644202,-500.0,0.00021917,2]
[358285481,1744896644213,-160.0,0.00021917,2]
[358285482,1744896644224,-526.05,0.00021917,2]
[358285483,1744896644235,-500.0,0.00021917,2]
[358285484,1744896644248,-500.0,0.00021917,2]
[358285485,1744896644260,-500.0,0.00021917,2]
[358285486,1744896644271,-500.0,0.00021917,2]
[358285487,1744896644283,-500.0,0.00021917,2]
[358285488,1744896644294,-1073.71,0.00021917,2]
[358285489,1744896644306,-592.54,0.00021917,2]
[358285490,1744896644318,-500.0,0.00021917,2]
[358285491,1744896644334,-500.0,0.00021917,2]
[358285492,1744896644346,-500.0,0.00021917,2]
[358285493,1744896644364,-500.0,0.00021917,2]
[358285494,1744896644376,-500.0,0.00021917,2]
[358285495,1744896644388,-500.0,0.00021917,2]
[358285496,1744896644399,-500.0,0.00021917,2]
[358285497,1744896644410,-1716.8,0.00021917,2]
[358285498,1744896644421,-500.0,0.00021917,2]
[358285499,1744896644431,-500.0,0.00021917,2]
[358285500,1744896644442,-500.0,0.00021917,2]
[358285501,1744896644452,-500.0,0.00021917,2]
[358285502,1744896644462,-500.0,0.00021917,2]
[358285503,1744896644472,-1176.76,0.00021917,2]
[358285504,1744896644483,-500.0,0.00021917,2]
[358285505,1744896644493,-500.0,0.00021917,2]
[358285506,1744896644504,-500.0,0.00021917,2]
[358285507,1744896644516,-503.84654457,0.00021917,2]
[358285508,1744896644526,-500.0,0.00021917,2]
[358285509,1744896644536,-500.0,0.00021917,2]
[358285510,1744896644547,-500.0,0.00021917,2]
[358285511,1744896644557,-500.0,0.00021917,2]
[358285512,1744896644568,-500.0,0.00021917,2]
[358285513,1744896644578,-501.23095977,0.00021917,2]
[358285514,1744896644588,-500.0,0.00021917,2]
[358285515,1744896644600,-500.42935916,0.00021917,2]
[358285516,1744896644610,-988.97,0.00021917,2]
[358285517,1744896644621,-507.56,0.00021917,2]
[358285518,1744896644631,-500.0,0.00021917,2]
[358285519,1744896644641,-508.52829702,0.00021917,2]
[358285520,1744896644652,-500.0,0.00021917,2]
[358285521,1744896644662,-500.0,0.00021917,2]
[358285522,1744896644673,-500.53139581,0.00021917,2]
[358285523,1744896644683,-503.72456173,0.00021917,2]
[358285524,1744896644693,-500.0,0.00021917,2]
[358285525,1744896644703,-500.0,0.00021917,2]
[358285526,1744896644713,-500.0,0.00021917,2]
[358285527,1744896644723,-500.0,0.00021917,2]
[358285528,1744896644734,-500.0,0.00021917,2]
[358285529,1744896644744,-576.91790178,0.00021917,2]
[358285530,1744896644754,-500.0,0.00021917,2]
[358285531,1744896644764,-500.0,0.00021917,2]
[358285532,1744896644774,-243.92245351,0.00021917,2]
[358285533,1744896644785,-500.0,0.00021917,2]
[358285534,1744896644795,-558.11,0.00021917,2]
[358285535,1744896644806,-500.0,0.00021917,2]
[358285536,1744896644816,-500.0,0.00021917,2]
[358285537,1744896644827,-500.0,0.00021917,2]
[358285538,1744896644837,-500.0,0.00021917,2]
[358285540,1744896644849,-500.0,0.00021917,2]
[358285541,1744896644860,-500.0,0.00021917,2]
[358285542,1744896644870,-500.0,0.00021917,2]
[358285543,1744896644880,-500.0,0.00021917,2]
[358285544,1744896644891,-774.69,0.00021917,2]
[358285545,1744896644901,-500.0,0.00021917,2]
[358285546,1744896644911,-651.79,0.00021917,2]
[358285547,1744896644921,-500.0,0.00021917,2]
[358285548,1744896644931,-500.0,0.00021917,2]
[358285549,1744896644942,-500.0,0.00021917,2]
[358285550,1744896644953,-500.0,0.00021917,2]
[358285551,1744896644963,-500.0,0.00021917,2]
[358285552,1744896644974,-151.0,0.00021917,2]
[358285553,1744896644985,-500.0,0.00021917,2]
[358285555,1744896644996,-500.0,0.00021917,2]
[358285558,1744896645255,-465.23645158,0.00021917,2]
[358285559,1744896645266,-500.0,0.00021917,2]
[358285560,1744896645276,-184.31131983,0.00021917,2]
[358285561,1744896645286,-732.35,0.00021917,2]
[358285562,1744896645297,-500.0,0.00021917,2]
[358285563,1744896645310,-500.0,0.00021917,2]
[358285564,1744896645320,-500.0,0.00021917,2]
[358285565,1744896645330,-744.41,0.00021917,2]
[358285566,1744896645340,-500.0,0.00021917,2]
[358285567,1744896645353,-500.0,0.00021917,2]
[358285568,1744896645363,-627.40792147,0.00021917,2]
[358285569,1744896645372,-530.26,0.00021917,2]
[358285570,1744896645383,-500.0,0.00021917,2]
[358285571,1744896645393,-500.0,0.00021917,2]
[358285572,1744896645403,-500.0,0.00021917,2]
[358285573,1744896645413,-500.0,0.00021917,2]
[358285574,1744896645423,-501.23,0.00021917,2]
[358285575,1744896645433,-500.0,0.00021917,2]
[358285576,1744896645442,-500.0,0.00021917,2]
[358285577,1744896645452,-535.00379995,0.00021917,2]
[358285578,1744896645461,-500.0,0.00021917,2]
[358285579,1744896645471,-500.0,0.00021917,2]
[358285580,1744896645481,-500.0,0.00021917,2]
[358285581,1744896645490,-500.0,0.00021917,2]
[358285582,1744896645499,-1000.0,0.00021917,2]
[358285583,1744896645508,-763.02,0.00021917,2]
[358285584,1744896645519,-500.0,0.00021917,2]
[358285585,1744896645528,-500.0,0.00021917,2]
[358285586,1744896645538,-683.77,0.00021917,2]
[358285587,1744896645548,-500.0,0.00021917,2]
[358285588,1744896645557,-1600.16,0.00021917,2]
[358285589,1744896645567,-500.0,0.00021917,2]
[358285590,1744896645577,-551.69,0.00021917,2]
[358285591,1744896645586,-741.17,0.00021917,2]
[358285592,1744896645595,-500.0,0.00021917,2]
[358285593,1744896645607,-500.0,0.00021917,2]
[358285594,1744896645617,-500.0,0.00021917,2]
[358285595,1744896645627,-500.0,0.00021917,2]
[358285596,1744896645636,-500.0,0.00021917,2]
[358285597,1744896645646,-557.72,0.00021917,2]
[358285598,1744896645655,-500.0,0.00021917,2]
[358285599,1744896645665,-500.0,0.00021917,2]
[358285600,1744896645675,-500.0,0.00021917,2]
[358285601,1744896645684,-500.0,0.00021917,2]
[358285602,1744896645694,-705.63,0.00021917,2]
[358285603,1744896645703,-564.02,0.00021917,2]
[358285604,1744896645713,-500.0,0.00021917,2]
[358285605,1744896645723,-500.0,0.00021917,2]
[358285606,1744896645733,-500.0,0.00021917,2]
[358285607,1744896645742,-500.0,0.00021917,2]
[358285608,1744896645752,-500.0,0.00021917,2]
[358285609,1744896645762,-500.47967792,0.00021917,2]
[358285610,1744896645774,-500.4871012,0.00021917,2]
[358285611,1744896645784,-698.81,0.00021917,2]
[358285612,1744896645795,-500.0,0.00021917,2]
[358285613,1744896645804,-500.0,0.00021917,2]
[358285614,1744896645814,-500.0,0.00021917,2]
[358285615,1744896645823,-500.0,0.00021917,2]
[358285616,1744896645833,-679.87,0.00021917,2]
[358285617,1744896645843,-500.0,0.00021917,2]
[358285618,1744896645853,-517.04173925,0.00021917,2]
[358285619,1744896645862,-500.0,0.00021917,2]
[358285620,1744896645872,-500.0,0.00021917,2]